Cogmind - Beta 13 @@@ ROGUE MODE // 2024.04.12 @ 13:32:16 Player: m1m1c Result: Destroyed by G-47 Trooper with Particle Gun Performance ------------- Evolutions (2) 1000 Regions Visited (6) 1200 Robots Destroyed (26) 130 Value Destroyed (571) 571 Prototype IDs (2) 40 Alien Tech Used (0) 0 Bonus (0) 0 TOTAL SCORE: 2941 Bonus ------- None Cogmind --------- Core Integrity 0/550 Matter 300/300 Energy 99/100 System Corruption 2% Temperature Cool (9) Movement Core (50) Location -8/Materials Parts ------- > --- POWER (1) -------- (None) > --- PROPULSION (5) --- (None) > --- UTILITY (3) ------ ECM Suite > --- WEAPON (2) ------- (None) > --- INVENTORY (5) ---- Large Storage Unit ECM Suite Peak State ------------ > --- POWER ------------ Heavy Ion Engine > --- PROPULSION ------- Flight Unit Flight Unit Flight Unit Flight Unit Flight Unit > --- UTILITY ---------- Weight Redist. System Improved Sensor Array ECM Suite > --- WEAPON ----------- Improved EM Shotgun Mini Grenade Launcher > --- INVENTORY -------- Improved Ion Engine Carbon-fiber Leg Large Storage Unit ECM Suite ECM Suite [Rating: 19] Favorites ----------- Power Heavy Ion Engine Engine Heavy Ion Engine Propulsion Aluminum Leg Leg Aluminum Leg Flight Unit Flight Unit Utility ECM Suite Device ECM Suite Storage Medium Storage Unit Weapon Improved EM Shotgun Energy Gun Improved EM Shotgun Energy Cannon Light EM Pulse Cannon Ballistic Gun Assault Rifle Launcher Mini Grenade Launcher Build | -11 -10 -9 -9 -9 -8 -8 ------- Run | Yrd Mat Mat Min Exi Min Mat Slots Evolved 4 | . . 2 . . . 2 Power . | . . . . . . . Propulsion 3 | . . 1 . . . 2 Utility 1 | . . 1 . . . . Weapon . | . . . . . . . Parts Attached 45 | 6 11 11 1 1 3 12 Power 6 | 1 . 2 . . 2 1 Engine 6 | 1 . 2 . . 2 1 Core . | . . . . . . . Reactor . | . . . . . . . Propulsion 17 | 2 5 2 . . 1 7 Treads . | . . . . . . . Leg 8 | 2 2 2 . . 1 1 Wheel . | . . . . . . . Hover . | . . . . . . . Flight 9 | . 3 . . . . 6 Utility 12 | 1 4 3 . 1 . 3 Device 8 | . 3 2 . . . 3 Storage 4 | 1 1 1 . 1 . . Processor . | . . . . . . . Hackware . | . . . . . . . Protection . | . . . . . . . Artifact . | . . . . . . . Weapon 10 | 2 2 4 1 . . 1 Energy Gun 4 | 1 . 3 . . . . Energy Cannon 3 | . 2 . 1 . . . Ballistic Gun 1 | 1 . . . . . . Ballistic Cannon . | . . . . . . . Launcher 2 | . . 1 . . . 1 Special Weapon . | . . . . . . . Impact Weapon . | . . . . . . . Slashing Weapon . | . . . . . . . Piercing Weapon . | . . . . . . . Special Melee Weapon . | . . . . . . . Unidentified Prototypes 2 | . . 2 . . . . Parts Lost 19 | . . 3 . . 1 15 Power 3 | . . 1 . . . 2 Propulsion 7 | . . . . . . 7 Utility 4 | . . . . . . 4 Weapon 5 | . . 2 . . 1 2 Highest Loss Streak 10 | . . 1 . . 1 10 To Critical Strikes . | . . . . . . . Average Slot Usage (%) 90 | . 94 89 95 100 90 58 Engine 10 | . 14 9 11 11 11 4 Leg 28 | . 23 33 33 33 33 2 Flight 2 | . 1 . . . . 17 Device 19 | . 11 14 22 22 22 21 Storage 10 | . 14 11 11 11 11 . Energy Gun 8 | . 3 5 11 11 11 4 Energy Cannon 7 | . 10 11 6 11 2 . Ballistic Gun 2 | . 14 1 . . . . Launcher 1 | . . 3 . . . 7 Naked Turns . | . . . . . . . Heaviest Build 37 | 14 22 26 27 37 37 16 Greatest Support 44 | 20 20 39 39 39 44 26 Greatest Overweight (x) 4 | 3 3 . . . . 4 Average Overweight (x) . | . . . . . . . Largest Inventory Capacity 25 | 8 10 25 10 15 15 15 Average Capacity 10 | 7 8 10 10 10 15 5 Most Carried 11 | 2 10 9 10 10 11 9 Average Carried 7 | 1 5 7 8 10 10 3 Final Capacity 15 | 8 10 10 10 15 15 5 Final Carried 10 | 2 10 8 10 10 10 2 Class Distribution -------------------- 95% | Mutant 4% | Scavenger-Sprinter Dominant Class ---------------- Mutant | -10/Materials Mutant | -9/Materials Mutant | -9/Mines Mutant | -9/Exiles Mutant | -8/Mines Mutant | -8/Materials Resources | -11 -10 -9 -9 -9 -8 -8 ----------- Run | Yrd Mat Mat Min Exi Min Mat Matter Collected 692 | 260 110 117 64 . 109 32 Remotely . | . . . . . . . Salvage Created 833 | . 194 304 60 . 214 61 Parts 54 | . 14 20 6 . 6 8 Haulers Intercepted 3 | . 1 2 . . . . Recyclers Shooed . | . . . . . . . Parts Field Recycled . | . . . . . . . Retrieved Matter . | . . . . . . . Parts Self-Destructed . | . . . . . . . Prevented . | . . . . . . . Kills | -11 -10 -9 -9 -9 -8 -8 ------- Run | Yrd Mat Mat Min Exi Min Mat Combat Hostiles Destroyed 16 | . 5 5 3 . 3 . Guns 6 | . 2 2 2 . . . Cannons 6 | . 3 1 1 . 1 . AOE 3 | . . 2 . . 1 . Classes Destroyed 8 | . 3 2 . . 1 2 Worker 2 | . . . . . 1 1 Builder 1 | . . . . . . 1 Hauler 3 | . 1 2 . . . . Operator 1 | . . . . . . 1 Watcher 3 | . . 2 . . . 1 Swarmer 6 | . 3 . 3 . . . Grunt 7 | . 2 2 . . 3 . Sentry 3 | . . 3 . . . . Best Kill Streak 4 | . 2 2 3 . 3 4 Combat Bots Only 3 | . 2 1 3 . 2 . Max Kills in Single Turn 2 | . 1 1 1 . 2 2 Gunslinging . | . . . . . . . Exploded 1 | . . 1 . . 1 . Melee . | . . . . . . . Uniques/NPCs Destroyed . | . . . . . . . Combat | -11 -10 -9 -9 -9 -8 -8 -------- Run | Yrd Mat Mat Min Exi Min Mat Hostile Shots Fired 247 | . 40 20 27 . 15 145 Missed 86 | . 8 4 9 . 6 59 Damage Taken 2037 | . 272 348 133 . 140 1144 Core 726 | . 60 111 . . . 555 Absorbed by Shields . | . . . . . . . Core Remaining (%) 82 | 100 76 . . . 72 . Volleys Fired 64 | . 17 25 6 . 14 2 Largest 2 | . 2 2 2 . 2 2 Hottest 110 | . 80 110 101 . 101 75 Shots Fired 108 | . 34 44 8 . 18 4 Gun 41 | . 17 11 2 . 9 2 Cannon 56 | . 17 24 6 . 9 . Launcher 11 | . . 9 . . . 2 Special . | . . . . . . . Kinetic 17 | . 17 . . . . . Thermal 46 | . 17 29 . . . . Explosive 11 | . . 9 . . . 2 Electromagnetic 34 | . . 6 8 . 18 2 Robot Hit Streak 12 | . 8 12 5 . 5 5 Robot Miss Streak 5 | . 5 2 1 . 2 3 Penetration Max . | . . . . . . . Secondary Targets . | . . . . . . . Shots Hit Robots 68 | . 16 30 6 . 13 3 Core Hits 38 | . 7 14 3 . 9 5 Critical Kills . | . . . . . . . Critical Parts Destroyed . | . . . . . . . Critical Strikes . | . . . . . . . Melee Attacks . | . . . . . . . Impact . | . . . . . . . Slashing . | . . . . . . . Piercing . | . . . . . . . Sneak Attacks . | . . . . . . . Combat Hostiles . | . . . . . . . Follow-up Attacks . | . . . . . . . Damage Inflicted 1768 | . 233 771 105 . 410 249 Guns 435 | . 111 126 28 . 137 33 Cannons 553 | . 122 229 77 . 125 . Explosions 737 | . . 416 . . 148 173 Melee . | . . . . . . . Ramming 43 | . . . . . . 43 Kinetic 111 | . 111 . . . . . Thermal 548 | . 122 278 . . 148 . Explosive 589 | . . 416 . . . 173 Electromagnetic 477 | . . 77 105 . 262 33 Impact . | . . . . . . . Slashing . | . . . . . . . Piercing . | . . . . . . . Highest Corruption 2 | . . . . . . 2 Average Corruption 2 | . . . . . . 2 Corruption Purged . | . . . . . . . Corruption Blocked . | . . . . . . . Overload Shots . | . . . . . . . Overflow Damage 79 | . . 36 . . . 43 Projectiles 12 | . . 12 . . . . Explosions 67 | . . 24 . . . 43 Melee . | . . . . . . . Knockbacks 1 | . . . . . . 1 Impact 1 | . . . . . . 1 Kinetic . | . . . . . . . Secondary . | . . . . . . . Self-Inflicted Damage 150 | . . 130 . . . 20 Shots 4 | . . 4 . . . . Rammed 10 | . . . . . . 10 Targets Rammed 11 | . . . . . 1 10 Kicked 1 | . . . . . 1 . Crushed . | . . . . . . . Highest Temperature 143 | . 134 143 66 . 84 67 Average Temperature 51 | . 59 57 30 . 38 37 Received Heat Transfer 429 | . 48 84 . . 81 216 Siege Activations . | . . . . . . . Robots Corrupted 1 | . . . . . 1 . Combat Hostiles 1 | . . . . . 1 . Parts Fried 2 | . . . . . 2 . Impact Corruptions . | . . . . . . . Robots Melted . | . . . . . . . Combat Hostiles . | . . . . . . . Parts Melted 1 | . . 1 . . . . Heat Transferred 888 | . 259 629 . . . . Parts Sabotaged . | . . . . . . . Parts Stolen . | . . . . . . . Parts Stripped . | . . . . . . . Power Chain Reactions 1 | . . . . . 1 . Alert | -11 -10 -9 -9 -9 -8 -8 ------- Run | Yrd Mat Mat Min Exi Min Mat Peak Influence 304 | . 168 304 188 . 69 95 Initial 118 | . . 70 118 . . . Average 93 | . 92 187 127 . 48 31 Maximum Alert Level 1 | . . 1 . . . . Low Security (%) 90 | 100 100 44 100 . 100 100 Level 1 9 | . . 55 . . . . Level 2 . | . . . . . . . Level 3 . | . . . . . . . Level 4 . | . . . . . . . Level 5 . | . . . . . . . High Security . | . . . . . . . Max Security . | . . . . . . . Squads Dispatched 5 | . 2 . . . . 3 Investigation 2 | . . . . . . 2 Extermination . | . . . . . . . Reinforcement 3 | . 2 . . . . 1 Assault . | . . . . . . . Garrison . | . . . . . . . Intercept . | . . . . . . . Searches Triggered . | . . . . . . . Construction Impeded . | . . . . . . . Haulers Reinforced . | . . . . . . . Active Scanning Responses . | . . . . . . . Cargo Convoy Interrupts . | . . . . . . . Stealth | -11 -10 -9 -9 -9 -8 -8 --------- Run | Yrd Mat Mat Min Exi Min Mat Distress Signals 1 | . . . . . . 1 Communications Jammed . | . . . . . . . Distress Signals . | . . . . . . . Times Spotted 44 | . 9 10 3 . 3 19 Peak Tracking Total 11 | . 4 3 3 . 2 11 Tactical Retreats 1 | . . . . . . 1 Traps | -11 -10 -9 -9 -9 -8 -8 ------- Run | Yrd Mat Mat Min Exi Min Mat Traps Triggered 2 | . . . . . . 2 Indirectly . | . . . . . . . Trap Hack Attempts . | . . . . . . . Triggered . | . . . . . . . Disarmed . | . . . . . . . Reprogrammed . | . . . . . . . Reused . | . . . . . . . Traps Extracted . | . . . . . . . Installed . | . . . . . . . Triggered . | . . . . . . . Machines | -11 -10 -9 -9 -9 -8 -8 ---------- Run | Yrd Mat Mat Min Exi Min Mat Machines Disabled 1 | . . . . . . 1 Max in Single Turn 1 | . . . . . . 1 Machines Repaired . | . . . . . . . Machines Dismantled . | . . . . . . . Machines Sabotaged . | . . . . . . . Overloaded Fab Kills . | . . . . . . . Hacking | -11 -10 -9 -9 -9 -8 -8 --------- Run | Yrd Mat Mat Min Exi Min Mat Machines Accessed 5 | . 2 2 . . 1 . Terminals 4 | . 2 1 . . 1 . Fabricators . | . . . . . . . Repair Stations . | . . . . . . . Recycling Units . | . . . . . . . Scanalyzers 1 | . . 1 . . . . Garrison Access . | . . . . . . . Total Hacks 12 | . 5 6 . . 1 . Successful 7 | . 2 4 . . 1 . Failed 5 | . 3 2 . . . . Catastrophic 1 | . 1 . . . . . Database Lockouts . | . . . . . . . Manual . | . . . . . . . Terminals 10 | . 5 4 . . 1 . Fabricators . | . . . . . . . Repair Stations . | . . . . . . . Recycling Units . | . . . . . . . Scanalyzers 2 | . . 2 . . . . Garrison Access . | . . . . . . . Terminal Hacks 5 | . 2 2 . . 1 . Alert Level 2 | . 1 1 . . . . Patrol Status 1 | . . 1 . . . . Zone Layout 2 | . 1 . . . 1 . Fabricator Hacks . | . . . . . . . Repair Station Hacks . | . . . . . . . Recycling Unit Hacks . | . . . . . . . Scanalyzer 2 | . . 2 . . . . Insert Component 1 | . . 1 . . . . Analyze 1 | . . 1 . . . . Garrison Access Hacks . | . . . . . . . Unauthorized Hacks . | . . . . . . . Terminals . | . . . . . . . Fabricators . | . . . . . . . Repair Stations . | . . . . . . . Recycling Units . | . . . . . . . Scanalyzers . | . . . . . . . Garrison Access . | . . . . . . . Data Cores Recovered . | . . . . . . . Used . | . . . . . . . Hacking Detections 3 | . 2 1 . . . . Full Trace Events . | . . . . . . . Feedback Events . | . . . . . . . Feedback Blocked . | . . . . . . . Robot Schematics Acquired . | . . . . . . . Robots Built . | . . . . . . . Authchips . | . . . . . . . Time . | . . . . . . . Total Robot Build Rating . | . . . . . . . Part Schematics Acquired 1 | . . 1 . . . . Parts Built . | . . . . . . . Authchips . | . . . . . . . Time . | . . . . . . . Total Part Build Rating . | . . . . . . . Parts Repaired . | . . . . . . . Time . | . . . . . . . Parts Recycled . | . . . . . . . Recycled Matter . | . . . . . . . Retrieved Matter . | . . . . . . . Retrieved Components . | . . . . . . . Parts Scanalyzed 1 | . . 1 . . . . Part Schematics Acquired 1 | . . 1 . . . . Parts Damaged . | . . . . . . . Bothacking | -11 -10 -9 -9 -9 -8 -8 ------------ Run | Yrd Mat Mat Min Exi Min Mat Used RIF Installer . | . . . . . . . Robots Hacked . | . . . . . . . Non-combat . | . . . . . . . Combat . | . . . . . . . Robot Hacks Applied . | . . . . . . . Relay Couplers Released . | . . . . . . . Fabnet Peak Effective % . | . . . . . . . Robots Rewired . | . . . . . . . Allies Hacked . | . . . . . . . Hacks Repelled . | . . . . . . . Allies | -11 -10 -9 -9 -9 -8 -8 -------- Run | Yrd Mat Mat Min Exi Min Mat Total Allies . | . . . . . . . Largest Group . | . . . . . . . Highest-Rated Group . | . . . . . . . Highest-Rated Ally . | . . . . . . . Total Orders . | . . . . . . . Ally Attacks . | . . . . . . . Total Damage . | . . . . . . . Kills . | . . . . . . . Allies Corrupted . | . . . . . . . Allies Melted . | . . . . . . . Intel | -11 -10 -9 -9 -9 -8 -8 ------- Run | Yrd Mat Mat Min Exi Min Mat Robot Analysis Total . | . . . . . . . Derelict Logs Recovered 1 | . . . 1 . . . Drone Launches . | . . . . . . . Drone Recoveries . | . . . . . . . Exploration | -11 -10 -9 -9 -9 -8 -8 ------------- Run | Yrd Mat Mat Min Exi Min Mat Turns Passed 2015 | 70 278 279 374 373 419 222 Spaces Moved 1600 | 57 150 156 298 233 315 391 Core 66 | 20 . . . . . 46 Treads . | . . . . . . . Legs 1237 | 37 143 156 298 233 315 55 Wheels . | . . . . . . . Hover . | . . . . . . . Flight 297 | . 7 . . . . 290 Fastest Speed 28 | 50 117 120 120 120 120 28 Average Speed 103 | 104 135 120 120 120 120 47 Slowest Speed 280 | 200 280 120 120 120 120 280 Overloaded Moves . | . . . . . . . Propulsion Burnouts . | . . . . . . . Robots Hopped 6 | . . . . . . 6 Cave-ins Triggered . | . . . . . . . Exploration Rate (%) 32 | 3 29 14 45 50 55 34 Regions Visited 6 Branch Regions 3 Pre-discovered Areas . | . . . . . . . Known Exits Taken . | . . . . . . . Unknown Exits Taken 6 | 1 1 1 1 1 1 . Scrap Searched 2 | . . . 1 . 1 . Spaces Dug . | . . . . . . . Terrain Destroyed 88 | . . 73 . . 4 11 Melee . | . . . . . . . Projectile . | . . . . . . . AOE 88 | . . 73 . . 4 11 Terrain Rammed . | . . . . . . . Walls Destroyed . | . . . . . . . Machines Disabled . | . . . . . . . Actions | -11 -10 -9 -9 -9 -8 -8 --------- Run | Yrd Mat Mat Min Exi Min Mat Total 1848 | 64 190 205 306 327 339 417 Wait 7 | . . 4 . . 3 . Move 1583 | 56 149 155 297 232 314 380 Hop 5 | . . . . . . 5 Pick Up 13 | 2 6 2 2 . . 1 Fast Attach 21 | 6 4 5 1 . 1 4 Attach 16 | . 2 5 . . 1 8 Detach 10 | . 4 2 . . 2 2 Swap 8 | . 5 1 . 1 1 . Drop 17 | . 3 6 . 1 2 5 Fire 64 | . 17 25 6 . 14 2 Melee . | . . . . . . . Ram 10 | . . . . . . 10 Kick 1 | . . . . . 1 . Crush . | . . . . . . . Escape Stasis . | . . . . . . . Rewire 93 | . . . . 93 . . Trap . | . . . . . . . Miscellaneous . | . . . . . . . Route ------- -11/Scrapyard -10/Materials -9/Materials -9/Mines -9/Exiles -8/Mines -8/Materials (discovered 1 exit: Fac) History --------- Turn | Location | Event 5 | -11/Scrapyard | Discovered new exit (range 16) 71 | -11/Scrapyard | Entered Materials 315 | -10/Materials | Build established: Mutant 332 | -10/Materials | Discovered new exit (range 7) 349 | -10/Materials | Entered another Materials area 349 | -9/Materials | Evolved 2 slots: Propulsion x1, Utility x1 548 | -9/Materials | Discovered new exit (range 9) 628 | -9/Materials | Entered Mines 827 | -9/Mines | Deemed a non-threat by the Exiles lab entrance 828 | -9/Mines | Discovered new exit (range 5) 1002 | -9/Mines | Entered Exiles 1044 | -9/Exiles | Met 8R-AWN 1070 | -9/Exiles | Met EX-HEX 1253 | -9/Exiles | Met EX-DEC 1353 | -9/Exiles | Discovered new exit (range 14) 1375 | -9/Exiles | Entered Mines 1636 | -8/Mines | Discovered new exit (range 12) 1794 | -8/Mines | Entered Materials 1794 | -8/Materials | Evolved 2 slots: Propulsion x2 1795 | -8/Materials | Identified exit to Factory 1937 | -8/Materials | Lost 10 parts (2p5n2u1w) 1993 | -8/Materials | Lost 3 parts (1n2u) 2000 | -8/Materials | Core integrity fell below 50% 2013 | -8/Materials | Core integrity fell below 20% 2016 | -8/Materials | Destroyed by G-47 Trooper with Particle Gun Last Messages --------------- reinforcements to Terminal M011. VTOL Module destroyed. Penetrated by Slug. Slug penetrates Wall. Slammed into H-55 Commando. H-55 Commando knocked back. Slammed into H-55 Commando. Destabilizing: Core damaged (-27). Slammed into H-55 Commando. Slug penetrates Wall. Penetrated by Slug. Mni. Grenade Launcher destroyed. Slammed into H-55 Commando. ECM Suite broken. Destabilizing: Short circuit. Slammed into H-55 Commando. Slammed into G-47 Trooper. Destabilizing: System corrupted (+2). Slammed into G-47 Trooper. Slug penetrates Wall. Map ----- +----------------------------------------------------+ | ?????##! # ?????????????? | | ??????##### # #???????????? | | ??????????# # #???????????? | | ??????##### # #???????????? | | ??????# #? #???????????? | | ??????# # #???????????? | | ??????#### + #???????????? | | ?????##### # #???????????? | | ?????#!! ####+######???????????? | | ?????#!! +???????????? | | ?????#// ^ #???????????? | | ?????#// ###### ]% "" #???????????? | | ?????#!! ?????# ] Y" #???????????? | | ?????#!!??????# ] "" #???????????? | | ?????##???????# +???????????? | | ??????????????# ! #???????????? | | ??????????????# ##"T"####+##???????????? | | ??????????????# ######?????????????????? | | ??????????????#Y#??????????????????????? | | ??????????????#s###????????????????????? | | ??????????????#hs #????????????????????? | | ??????????????#wh #????????????????????? | | ??????????????# #????????????????????? | | ??????????????# g #????????????????????? | | ??????????????#%g #????????????????????? | | ??????????????#@ #????????????????????? | | ??????????????# #????????????????????? | | ??????????????# #????????????????????? | | ??????????????# g #????????????????????? | | ??????????????# #????????????????????? | | ??????????????# #????????????????????? | | ??????????????# ###################### | | ??????????????# | | ??????????????# | | ??????????????# | | ??????????????# | | ??????????????# | | ??????????????/ #####################+ | | ??????????????# #????????????????????? | | ??????????????# #????????????????????? | | ??????????????# #????????????????????? | | ?????????????? ????????????????????? | | ????????????? ????????????????????? | | ????????